fUSD/lending_fUSD_20240619
["ID","MTS","AMOUNT","RATE_DAILY","PERIOD"]
[329874833,1718779859233,-2313.82,0.00013972,2]
[329874834,1718779859243,-2024.68,0.00013972,2]
[329874835,1718779859253,-1731.26,0.00013972,2]
[329874836,1718779859263,-500.0,0.00013972,2]
[329874837,1718779859275,-1130.86,0.00013972,2]
[329874838,1718779859286,-1000.0,0.00013972,5]
[329874839,1718779859295,-521.08,0.00013972,2]
[329874840,1718779859305,-500.0,0.00013972,2]
[329874841,1718779859314,-500.0,0.00013972,2]
[329874842,1718779859323,-522.11,0.00013972,2]
[329874843,1718779859333,-815.1,0.00013972,2]
[329874844,1718779859343,-1428.09,0.00013972,2]
[329874845,1718779859352,-500.0,0.00013972,2]
[329874846,1718779859362,-1356.94,0.00013972,2]
[329874847,1718779859371,-215.12499287,0.00013972,2]
[329874848,1718779859380,-186.6974723,0.00013972,2]
[329874849,1718779859390,-1320.58,0.00013972,2]
[329874850,1718779859400,-516.31247636,0.00013972,2]
[329874851,1718779859409,-1235.96891316,0.00013972,2]
[329874852,1718779859517,-483.79920072,0.00013698,2]
[329874853,1718779859528,-16.20079928,0.00013698,2]
[329874854,1718779859538,-844.14108684,0.00013972,2]
[329874855,1718779859547,-651.02,0.00013972,2]
[329874856,1718779859557,-500.0,0.00013972,2]
[329874857,1718779859567,-500.0,0.00013972,2]
[329874858,1718779859576,-500.0,0.00013972,2]
[329874859,1718779859586,-1042.19415611,0.00013972,2]
[329874860,1718779860191,-107.49584389,0.00013972,2]
[329874861,1718779860201,-200.2501316,0.00013972,2]
[329874862,1718779861339,-1808.24,0.00013698,2]
[329874863,1718779861348,-664.01,0.00013698,2]
[329874864,1718779861357,-2410.29335746,0.00013698,2]
[329874865,1718779861368,-1311.84,0.00013698,2]
[329874866,1718779913551,794.38,0.00010389,2]
[329874867,1718779977432,606.23362958,0.00010389,2]
[329874868,1718779979824,606.23362958,0.00010389,2]
[329874869,1718779984172,606.23362958,0.00010389,2]
[329874870,1718780036167,263.20643418,0.00010389,2]
[329874871,1718780056174,263.20643418,0.00010389,2]
[329874872,1718780074185,263.20643418,0.00010389,2]
[329874873,1718780096170,263.20643418,0.00010389,2]
[329874874,1718780122222,263.20643418,0.00010389,2]
[329874875,1718780148721,791.82,0.00010959,2]
[329874876,1718780611522,754.66,0.00010738,2]
[329874877,1718780634309,-1492.42643164,0.00012252,2]
[329874878,1718780634333,-300.0,0.00012253,2]
[329874879,1718780634356,-13378.7543,0.00012254,2]
[329874880,1718780634378,-250.0,0.00012612,2]
[329874881,1718780634401,-460.90794393,0.00012652,2]
[329874882,1718780634423,-35651.34853887,0.00012662,2]
[329874883,1718780634450,-38408.02,0.00012785,2]
[329874884,1718780634474,-1013.64,0.00012809,2]
[329874885,1718780634496,-250.0,0.00012842,2]
[329874886,1718780634520,-2543.38,0.00012842,2]
[329874887,1718780634542,-703.83,0.00012891,2]
[329874888,1718780634564,-1000.0,0.00012923,2]
[329874889,1718780634588,-21473.0,0.00012928,2]
[329874890,1718780634610,-3888.29,0.00012928,2]
[329874891,1718780634632,-499.99,0.00012928,2]
[329874892,1718780634654,-754.66,0.00013001,2]
[329874893,1718780634677,-420.0,0.00013448,2]
[329874894,1718780634700,-3623.99456174,0.00013598,2]
[329874895,1718780634722,-174.56450957,0.00013598,2]
[329874896,1718780634746,-274.51725021,0.00013598,2]
[329874897,1718780634768,-194.05290798,0.00013598,2]
[329874898,1718780634790,-3231.1279,0.00013598,2]
[329874899,1718780634811,-1198.9336,0.00013598,2]
[329874900,1718780634834,-6768.0,0.000136,2]
[329874901,1718780634856,-245.79740235,0.00013688,2]
[329874902,1718780634878,-1023.64962857,0.00013692,2]
[329874903,1718780634900,-2140.34782153,0.00013696,2]
[329874904,1718780634922,-445.79165515,0.00013696,2]
[329874905,1718780634944,-297.12640982,0.00013696,2]
[329874906,1718780634965,-348.51922333,0.00013697,2]
[329874907,1718780634987,-1542.82918872,0.00013697,2]
[329874908,1718780635010,-500.0,0.00013698,2]
[329874909,1718780635032,-500.0,0.00013698,2]
[329874910,1718780635055,-719.0,0.00013698,2]
[329874911,1718780635078,-500.0,0.00013698,2]
[329874912,1718780635099,-500.0,0.00013698,2]
[329874913,1718780635123,-500.0,0.00013698,2]
[329874914,1718780635145,-500.0,0.00013698,2]
[329874915,1718780635166,-500.0,0.00013698,2]
[329874916,1718780635188,-500.0,0.00013698,2]
[329874917,1718780635208,-500.0,0.00013698,2]
[329874918,1718780635230,-865.81,0.00013698,2]
[329874919,1718780635252,-500.0,0.00013698,2]
[329874920,1718780635274,-500.0,0.00013698,2]
[329874921,1718780635296,-505.85,0.00013698,2]
[329874922,1718780635319,-500.0,0.00013698,2]
[329874923,1718780635341,-500.0,0.00013698,2]
[329874924,1718780635364,-977.58,0.00013698,2]
[329874925,1718780635387,-500.0,0.00013698,2]
[329874926,1718780635408,-500.0,0.00013698,2]
[329874927,1718780635433,-365.82729534,0.00013698,2]
[329874928,1718780635455,-500.0,0.00013698,2]
[329874929,1718780635478,-500.0,0.00013698,2]
[329874930,1718780635501,-500.0,0.00013698,2]
[329874931,1718780635525,-500.0,0.00013698,2]
[329874932,1718780635548,-500.0,0.00013698,2]
[329874933,1718780635569,-500.0,0.00013698,2]
[329874934,1718780635592,-913.97,0.00013698,2]
[329874935,1718780635613,-500.0,0.00013698,2]
[329874936,1718780635635,-500.0,0.00013698,2]
[329874937,1718780635657,-500.0,0.00013698,2]
[329874938,1718780635681,-500.0,0.00013698,2]
[329874939,1718780635702,-500.0,0.00013698,2]
[329874940,1718780635726,-875.18,0.00013698,2]
[329874941,1718780635748,-1399.75,0.00013698,2]
[329874942,1718780635769,-500.0,0.00013698,2]
[329874943,1718780635791,-500.0,0.00013698,2]
[329874944,1718780635815,-1116.12,0.00013698,2]
[329874945,1718780635840,-500.0,0.00013698,2]
[329874946,1718780635862,-1226.89,0.00013698,2]
[329874947,1718780635883,-500.0,0.00013698,2]
[329874948,1718780635907,-500.0,0.00013698,2]
[329874949,1718780635929,-1465.88,0.00013698,2]
[329874950,1718780635951,-500.0,0.00013698,2]
[329874951,1718780635972,-500.0,0.00013698,2]
[329874952,1718780635994,-1331.83,0.00013698,2]
[329874953,1718780636016,-500.0,0.00013698,2]
[329874954,1718780636037,-500.0,0.00013698,2]
[329874955,1718780636059,-500.0,0.00013698,2]
[329874956,1718780636082,-964.54,0.00013698,2]
[329874957,1718780636104,-301.44913055,0.00013698,2]
[329874958,1718780636127,-515.43,0.00013698,2]
[329874959,1718780636148,-500.0,0.00013698,2]
[329874960,1718780636171,-678.68,0.00013698,2]
[329874961,1718780636193,-500.0,0.00013698,2]
[329874962,1718780636216,-1050.9,0.00013698,2]
[329874963,1718780636238,-500.0,0.00013698,2]
[329874964,1718780636260,-500.0,0.00013698,2]
[329874965,1718780636284,-819.17,0.00013698,2]
[329874966,1718780636306,-732.48,0.00013698,2]
[329874967,1718780636329,-500.0,0.00013698,2]
[329874968,1718780636351,-510.64,0.00013698,2]
[329874969,1718780636375,-766.38,0.00013698,2]
[329874970,1718780636397,-500.0,0.00013698,2]
[329874971,1718780636420,-500.0,0.00013698,2]
[329874972,1718780636446,-1297.02,0.00013698,2]
[329874973,1718780636469,-540.51,0.00013698,2]
[329874974,1718780636492,-1154.36,0.00013698,2]
[329874975,1718780636516,-500.0,0.00013698,2]
[329874976,1718780636538,-500.0,0.00013698,2]
[329874977,1718780636562,-525.31967156,0.00013698,2]
[329874978,1718780636585,-500.0,0.00013698,2]
[329874979,1718780636831,-500.0,0.00013698,2]
[329874980,1718780636854,-500.0,0.00013698,2]
[329874981,1718780636876,-2674.23,0.00013698,2]
[329874982,1718780636899,-631.52,0.00013698,2]
[329874983,1718780636920,-500.0,0.00013698,2]
[329874984,1718780636942,-1815.38,0.00013698,2]
[329874985,1718780636964,-500.0,0.00013698,2]
[329874986,1718780636985,-531.51,0.00013698,2]
[329874987,1718780637007,-1056.34,0.00013698,2]
[329874988,1718780637029,-500.0,0.00013698,2]
[329874989,1718780637051,-500.0,0.00013698,2]
[329874990,1718780637072,-500.0,0.00013698,2]
[329874991,1718780637096,-1459.85,0.00013698,2]
[329874992,1718780637117,-500.0,0.00013698,2]
[329874993,1718780637139,-500.0,0.00013698,2]
[329874994,1718780637160,-890.32,0.00013698,2]
[329874995,1718780637181,-500.0,0.00013698,2]
[329874996,1718780637204,-1771.23,0.00013698,2]
[329874997,1718780637226,-963.87,0.00013698,2]
[329874998,1718780637248,-350.30124984,0.00013698,2]
[329874999,1718780637270,-1551.39,0.00013698,2]
[329875000,1718780637292,-629.27,0.00013698,2]
[329875001,1718780637315,-579.22,0.00013698,2]
[329875002,1718780637337,-500.0,0.00013698,2]
[329875003,1718780637359,-924.4,0.00013698,2]
[329875004,1718780637383,-500.0,0.00013698,2]
[329875005,1718780637407,-2312.37,0.00013698,2]
[329875006,1718780637433,-1304.52,0.00013698,2]
[329875007,1718780637455,-500.0,0.00013698,2]
[329875008,1718780637478,-500.0,0.00013698,2]
[329875009,1718780637502,-1491.17,0.00013698,2]
[329875010,1718780637526,-500.0,0.00013698,2]
[329875011,1718780637550,-812.06,0.00013698,2]
[329875012,1718780637572,-500.0,0.00013698,2]
[329875013,1718780637596,-920.21,0.00013698,2]
[329875014,1718780637619,-1191.91,0.00013698,2]
[329875015,1718780637642,-505.25,0.00013698,2]
[329875016,1718780637664,-500.0,0.00013698,2]
[329875017,1718780637686,-609.91,0.00013698,2]
[329875018,1718780637708,-1427.62,0.00013698,2]
[329875019,1718780637730,-500.0,0.00013698,2]
[329875020,1718780637752,-868.86,0.00013698,2]
[329875021,1718780637774,-500.0,0.00013698,2]
[329875022,1718780637796,-1116.79,0.00013698,2]
[329875023,1718780637818,-1154.8,0.00013698,2]
[329875024,1718780637842,-500.0,0.00013698,2]
[329875025,1718780637865,-1899.93,0.00013698,2]
[329875026,1718780637888,-902.47,0.00013698,2]
[329875027,1718780637910,-500.0,0.00013698,2]
[329875028,1718780637932,-1971.07,0.00013698,2]
[329875029,1718780637954,-506.49,0.00013698,2]
[329875030,1718780637976,-500.0,0.00013698,2]
[329875031,1718780638000,-1489.47,0.00013698,2]
[329875032,1718780638025,-500.0,0.00013698,2]
[329875033,1718780638050,-500.0,0.00013698,2]
[329875034,1718780638076,-2476.41,0.00013698,2]
[329875035,1718780638099,-1136.18,0.00013698,2]
[329875036,1718780638121,-1206.13,0.00013698,2]
[329875037,1718780638143,-1893.23,0.00013698,2]
[329875038,1718780638166,-796.23,0.00013698,2]
[329875039,1718780638190,-1200.66,0.00013698,2]
[329875040,1718780638216,-1394.83,0.00013698,2]
[329875041,1718780638240,-1122.49,0.00013698,2]
[329875042,1718780638264,-500.0,0.00013698,2]
[329875043,1718780638286,-500.0,0.00013698,2]
[329875044,1718780638310,-1361.85,0.00013698,2]
[329875045,1718780638333,-1276.78,0.00013698,2]
[329875046,1718780638355,-507.88,0.00013698,2]
[329875047,1718780638377,-1331.84,0.00013698,2]
[329875048,1718780638401,-2080.62,0.00013698,2]
[329875049,1718780638424,-798.08,0.00013698,2]
[329875050,1718780638450,-1428.08,0.00013698,2]
[329875051,1718780638472,-1906.77,0.00013698,2]
[329875052,1718780638494,-500.0,0.00013698,2]
[329875053,1718780638518,-615.59,0.00013698,2]
[329875054,1718780638539,-1113.81,0.00013698,2]
[329875055,1718780638561,-1312.6,0.00013698,2]
[329875056,1718780638583,-301.91550806,0.00013698,2]
[329875057,1718780638606,-1892.67,0.00013698,2]
[329875058,1718780638628,-500.0,0.00013698,2]
[329875059,1718780638651,-500.0,0.00013698,2]
[329875060,1718780638673,-500.0,0.00013698,2]
[329875061,1718780638696,-1831.62,0.00013698,2]
[329875062,1718780638719,-500.0,0.00013698,2]
[329875063,1718780638740,-1199.76,0.00013698,2]
[329875064,1718780638762,-500.0,0.00013698,2]
[329875065,1718780638784,-541.29,0.00013698,2]
[329875066,1718780638807,-500.0,0.00013698,2]
[329875067,1718780638828,-500.0,0.00013698,2]
[329875068,1718780638850,-1313.24,0.00013698,2]
[329875069,1718780638871,-500.0,0.00013698,2]
[329875070,1718780638893,-500.0,0.00013698,2]
[329875071,1718780638916,-1068.84,0.00013698,2]
[329875072,1718780638937,-500.0,0.00013698,2]
[329875073,1718780638960,-658.24,0.00013698,2]
[329875074,1718780638984,-1038.0,0.00013698,2]
[329875075,1718780639006,-500.0,0.00013698,2]
[329875076,1718780639028,-500.0,0.00013698,2]
[329875077,1718780639049,-500.0,0.00013698,2]
[329875078,1718780639072,-870.06,0.00013698,2]
[329875079,1718780639098,-1053.88,0.00013698,2]
[329875080,1718780639120,-500.0,0.00013698,2]
[329875081,1718780639141,-500.0,0.00013698,2]
[329875082,1718780639163,-783.05,0.00013698,2]
[329875083,1718780639186,-998.32,0.00013698,2]
[329875084,1718780639208,-1855.96,0.00013698,2]
[329875085,1718780639230,-500.0,0.00013698,2]
[329875086,1718780639252,-1453.56,0.00013698,2]
[329875087,1718780639274,-500.0,0.00013698,2]
[329875088,1718780639297,-4231.93,0.00013698,2]
[329875089,1718780639320,-1165.66,0.00013698,2]
[329875090,1718780639343,-672.67,0.00013698,2]
[329875091,1718780639364,-1424.93,0.00013698,2]
[329875092,1718780639386,-500.0,0.00013698,2]
[329875093,1718780639409,-2121.0,0.00013698,2]
[329875094,1718780639441,-694.8,0.00013698,2]
[329875095,1718780639468,-1448.85,0.00013698,2]
[329875096,1718780639490,-500.0,0.00013698,2]
[329875097,1718780639714,-500.0,0.00013698,2]
[329875098,1718780639737,-517.45355166,0.00013698,2]
[329875099,1718780639759,-1431.94,0.00013698,2]
[329875100,1718780639780,-552.55,0.00013698,2]
[329875101,1718780639801,-1309.97,0.00013698,2]
[329875102,1718780639823,-500.0,0.00013698,2]
[329875103,1718780639845,-500.0,0.00013698,2]
[329875104,1718780639868,-974.35,0.00013698,2]
[329875105,1718780639892,-705.75,0.00013698,2]
[329875106,1718780639917,-1243.87,0.00013698,2]
[329875107,1718780639940,-1847.04,0.00013698,2]
[329875108,1718780639964,-2866.66,0.00013698,2]
[329875109,1718780639986,-500.0,0.00013698,2]
[329875110,1718780640009,-1019.71,0.00013698,2]
[329875111,1718780640032,-500.0,0.00013698,2]
[329875112,1718780640054,-500.0,0.00013698,2]
[329875113,1718780640077,-500.0,0.00013698,2]
[329875114,1718780640100,-500.0,0.00013698,2]
[329875115,1718780640124,-877.43,0.00013698,2]
[329875116,1718780640146,-500.0,0.00013698,2]
[329875117,1718780640168,-500.0,0.00013698,2]
[329875118,1718780640194,-1586.99,0.00013698,2]
[329875119,1718780640220,-1814.99,0.00013698,2]
[329875120,1718780640244,-1934.53,0.00013698,2]
[329875121,1718780640267,-500.0,0.00013698,2]
[329875122,1718780640292,-699.81,0.00013698,2]
[329875123,1718780640316,-500.0,0.00013698,2]
[329875124,1718780640342,-1886.08,0.00013698,2]
[329875125,1718780640364,-1869.95,0.00013698,2]
[329875126,1718780640389,-1374.62,0.00013698,2]
[329875127,1718780640412,-1210.53,0.00013698,2]
[329875128,1718780640437,-821.87,0.00013698,2]
[329875129,1718780640460,-1819.3,0.00013698,2]
[329875130,1718780640484,-868.62,0.00013698,2]
[329875131,1718780640508,-500.0,0.00013698,2]
[329875132,1718780640531,-500.0,0.00013698,2]
[329875133,1718780640553,-500.0,0.00013698,2]
[329875134,1718780640576,-1057.64,0.00013698,2]
[329875135,1718780640600,-869.29,0.00013698,2]
[329875136,1718780640626,-1808.6,0.00013698,2]
[329875137,1718780640648,-1238.37,0.00013698,2]
[329875138,1718780640674,-2285.79,0.00013698,2]
[329875139,1718780640698,-797.38,0.00013698,2]
[329875140,1718780640721,-531.1,0.00013698,2]
[329875141,1718780640751,-500.0,0.00013698,2]
[329875142,1718780640774,-736.15,0.00013698,2]
[329875143,1718780640797,-998.31,0.00013698,2]
[329875144,1718780640822,-716.87,0.00013698,2]
[329875145,1718780640846,-500.0,0.00013698,2]
[329875146,1718780640870,-1114.28,0.00013698,2]
[329875147,1718780640896,-500.0,0.00013698,2]
[329875148,1718780640920,-781.44,0.00013698,2]
[329875149,1718780640942,-1263.73,0.00013698,2]
[329875150,1718780640966,-500.0,0.00013698,2]
[329875151,1718780640988,-678.42,0.00013698,2]
[329875152,1718780641010,-1446.64,0.00013698,2]
[329875153,1718780641033,-1234.72,0.00013698,2]
[329875154,1718780641055,-510.2,0.00013698,2]
[329875155,1718780641077,-908.88,0.00013698,2]
[329875156,1718780641102,-648.78,0.00013698,2]
[329875157,1718780641124,-1435.38,0.00013698,2]
[329875158,1718780641149,-500.0,0.00013698,2]
[329875159,1718780641171,-2094.79,0.00013698,2]
[329875160,1718780641194,-663.51,0.00013698,2]
[329875161,1718780641216,-665.23,0.00013698,2]
[329875162,1718780641238,-1168.12,0.00013698,2]
[329875163,1718780641261,-896.17,0.00013698,2]
[329875164,1718780641283,-1976.31,0.00013698,2]
[329875165,1718780641305,-500.0,0.00013698,2]
[329875166,1718780641328,-562.62,0.00013698,2]
[329875167,1718780641351,-562.8,0.00013698,2]
[329875168,1718780641374,-2193.97,0.00013698,2]
[329875169,1718780641396,-561.86,0.00013698,2]
[329875170,1718780641416,-1831.82,0.00013698,2]
[329875171,1718780641442,-500.0,0.00013698,2]
[329875172,1718780641463,-1357.36,0.00013698,2]
[329875173,1718780641486,-1234.31,0.00013698,2]
[329875174,1718780641509,-695.99,0.00013698,2]
[329875175,1718780641531,-500.0,0.00013698,2]
[329875176,1718780641553,-1240.53,0.00013698,2]
[329875177,1718780641576,-500.0,0.00013698,2]
[329875178,1718780641600,-1538.29,0.00013698,2]
[329875179,1718780641626,-500.0,0.00013698,2]
[329875180,1718780641649,-2266.99,0.00013698,2]
[329875181,1718780641673,-1953.26,0.00013698,2]
[329875182,1718780641696,-860.17,0.00013698,2]
[329875183,1718780641719,-500.0,0.00013698,2]
[329875184,1718780641742,-500.0,0.00013698,2]
[329875185,1718780641764,-1271.43,0.00013698,2]
[329875186,1718780641787,-2377.13,0.00013698,2]
[329875187,1718780641810,-500.0,0.00013698,2]
[329875188,1718780641834,-500.0,0.00013698,2]
[329875189,1718780641856,-500.0,0.00013698,2]
[329875190,1718780641879,-500.0,0.00013698,2]
[329875191,1718780641901,-935.19,0.00013698,2]
[329875192,1718780641934,-1593.74,0.00013698,2]
[329875193,1718780641956,-500.0,0.00013698,2]
[329875194,1718780641980,-500.0,0.00013698,2]
[329875195,1718780642004,-1244.46,0.00013698,2]
[329875196,1718780642027,-681.76,0.00013698,2]
[329875197,1718780642050,-503.30993919,0.00013698,2]
[329875198,1718780642073,-500.0,0.00013698,2]
[329875199,1718780642099,-1218.63,0.00013698,2]
[329875200,1718780642121,-2349.5,0.00013698,2]
[329875201,1718780642144,-635.94,0.00013698,2]
[329875202,1718780642166,-1188.32,0.00013698,2]
[329875203,1718780642188,-1751.01,0.00013698,2]
[329875204,1718780642211,-3375.57,0.00013698,2]
[329875205,1718780642233,-500.0,0.00013698,2]
[329875206,1718780642257,-569.95,0.00013698,2]
[329875207,1718780642279,-1394.34,0.00013698,2]
[329875208,1718780642302,-500.0,0.00013698,2]
[329875209,1718780642326,-500.0,0.00013698,2]
[329875210,1718780642351,-879.26,0.00013698,2]
[329875211,1718780642374,-994.52,0.00013698,2]
[329875212,1718780642396,-1590.91,0.00013698,2]
[329875213,1718780642419,-1526.8,0.00013698,2]
[329875214,1718780642445,-500.0,0.00013698,2]
[329875215,1718780642682,-1478.49,0.00013698,2]
[329875216,1718780642706,-1079.62,0.00013698,2]
[329875217,1718780642729,-1266.99,0.00013698,2]
[329875218,1718780642750,-2327.76,0.00013698,2]
[329875219,1718780642773,-1285.05,0.00013698,2]
[329875220,1718780642795,-1678.96,0.00013698,2]
[329875221,1718780642817,-1332.1,0.00013698,2]
[329875222,1718780642838,-500.0,0.00013698,2]
[329875223,1718780642861,-1778.97,0.00013698,2]
[329875224,1718780642883,-500.0,0.00013698,2]
[329875225,1718780642905,-500.0,0.00013698,2]
[329875226,1718780642928,-2066.28,0.00013698,2]
[329875227,1718780642951,-550.34,0.00013698,2]
[329875228,1718780642973,-818.54,0.00013698,2]
[329875229,1718780642995,-2253.67,0.00013698,2]
[329875230,1718780643022,-886.32,0.00013698,2]
[329875231,1718780643054,-567.79,0.00013698,2]
[329875232,1718780643075,-500.0,0.00013698,2]
[329875233,1718780643098,-500.0,0.00013698,2]
[329875234,1718780643120,-1524.88,0.00013698,2]
[329875235,1718780643142,-584.09,0.00013698,2]
[329875236,1718780643164,-1364.95,0.00013698,2]
[329875237,1718780643186,-500.0,0.00013698,2]
[329875238,1718780643208,-1222.52,0.00013698,2]
[329875239,1718780643229,-500.0,0.00013698,2]
[329875240,1718780643252,-596.91,0.00013698,2]
[329875241,1718780643276,-500.0,0.00013698,2]
[329875242,1718780643298,-650.99,0.00013698,2]
[329875243,1718780643320,-1326.11,0.00013698,2]
[329875244,1718780643344,-500.0,0.00013698,2]
[329875245,1718780643370,-1678.45,0.00013698,2]
[329875246,1718780643392,-925.49,0.00013698,2]
[329875247,1718780643414,-753.69,0.00013698,2]
[329875248,1718780643440,-500.0,0.00013698,2]
[329875249,1718780643462,-2358.33,0.00013698,2]
[329875250,1718780643486,-500.0,0.00013698,2]
[329875251,1718780643509,-1432.65,0.00013698,2]
[329875252,1718780643536,-1675.26,0.00013698,2]
[329875253,1718780643558,-500.0,0.00013698,2]
[329875254,1718780643584,-1329.17,0.00013698,2]
[329875255,1718780643607,-594.47997191,0.00013698,2]
[329875256,1718780643632,-1151.97,0.00013698,2]
[329875257,1718780643657,-2226.16,0.00013698,2]
[329875258,1718780643682,-500.0,0.00013698,2]
[329875259,1718780643705,-543.26,0.00013698,2]
[329875260,1718780643730,-500.0,0.00013698,2]
[329875261,1718780643753,-873.66,0.00013698,2]
[329875262,1718780643778,-1963.58,0.00013698,2]
[329875263,1718780643801,-959.53,0.00013698,2]
[329875264,1718780643826,-3269.11,0.00013698,2]
[329875265,1718780643852,-2999.64,0.00013698,2]
[329875266,1718780643876,-500.0,0.00013698,2]
[329875267,1718780643901,-500.0,0.00013698,2]
[329875268,1718780643923,-1279.68,0.00013698,2]
[329875269,1718780643946,-500.0,0.00013698,2]
[329875270,1718780643968,-500.0,0.00013698,2]
[329875271,1718780643990,-663.61,0.00013698,2]
[329875272,1718780644011,-500.0,0.00013698,2]
[329875273,1718780644034,-1497.57,0.00013698,2]
[329875274,1718780644056,-348.05139329,0.00013698,2]
[329875275,1718780644079,-549.96,0.00013698,2]
[329875276,1718780644103,-2194.34,0.00013698,2]
[329875277,1718780644126,-500.0,0.00013698,2]
[329875278,1718780644150,-500.0,0.00013698,2]
[329875279,1718780644174,-500.0,0.00013698,2]
[329875280,1718780644196,-500.0,0.00013698,2]
[329875281,1718780644219,-1108.61,0.00013698,2]
[329875282,1718780644243,-500.0,0.00013698,2]
[329875283,1718780644267,-500.0,0.00013698,2]
[329875284,1718780644292,-500.0,0.00013698,2]
[329875285,1718780644315,-781.9,0.00013698,2]
[329875286,1718780644338,-500.0,0.00013698,2]
[329875287,1718780644360,-500.0,0.00013698,2]
[329875288,1718780644383,-1900.58,0.00013698,2]
[329875289,1718780644407,-500.0,0.00013698,2]
[329875290,1718780644432,-500.0,0.00013698,2]
[329875291,1718780644454,-500.0,0.00013698,2]
[329875292,1718780644476,-11940.43,0.00013698,2]
[329875293,1718780644500,-1064.77,0.00013698,2]
[329875294,1718780644525,-500.0,0.00013698,2]
[329875295,1718780644548,-2987.78,0.00013698,2]
[329875296,1718780644573,-2441.24,0.00013698,2]
[329875297,1718780644597,-1640.79,0.00013698,2]
[329875298,1718780644620,-500.0,0.00013698,2]
[329875299,1718780644645,-500.0,0.00013698,2]
[329875300,1718780644668,-500.0,0.00013698,2]
[329875301,1718780644692,-161.54282609,0.00013698,2]
[329875302,1718780644715,-500.0,0.00013698,2]
[329875303,1718780644739,-589.07,0.00013698,2]
[329875304,1718780644762,-571.16,0.00013698,2]
[329875305,1718780644786,-500.0,0.00013698,2]
[329875306,1718780644809,-500.0,0.00013698,2]
[329875307,1718780644835,-1321.53,0.00013698,2]
[329875308,1718780644860,-934.29,0.00013698,2]
[329875309,1718780644884,-500.0,0.00013698,2]
[329875310,1718780644909,-500.0,0.00013698,2]
[329875311,1718780644933,-1415.15,0.00013698,2]
[329875312,1718780644957,-2275.96,0.00013698,2]
[329875313,1718780644980,-3631.46,0.00013698,2]
[329875314,1718780645003,-500.0,0.00013698,2]
[329875315,1718780645027,-500.0,0.00013698,2]
[329875316,1718780645050,-500.0,0.00013698,2]
[329875317,1718780645074,-28393.85,0.00013698,2]
[329875318,1718780645098,-684.05,0.00013698,2]
[329875319,1718780645120,-945.77,0.00013698,2]
[329875320,1718780645143,-1071.92,0.00013698,2]
[329875321,1718780645165,-609.13,0.00013698,2]
[329875322,1718780645188,-2061.9,0.00013698,2]
[329875323,1718780645211,-804.78,0.00013698,2]
[329875324,1718780645235,-500.0,0.00013698,2]
[329875325,1718780645259,-585.3,0.00013698,2]
[329875326,1718780645284,-1392.21,0.00013698,2]
[329875327,1718780645306,-792.58,0.00013698,2]
[329875328,1718780645329,-500.0,0.00013698,2]
[329875329,1718780645352,-810.06,0.00013698,2]
[329875330,1718780645376,-5005.62,0.00013698,2]
[329875331,1718780645398,-500.0,0.00013698,2]
[329875332,1718780645424,-7886.34,0.00013698,2]